[Event "Commonwealth Open 2019"]
[Site "Delhi"]
[Date "2019.07.04"]
[Round "6.7"]
[White "Sangma, Rahul"]
[Black "Iniyan, P."]
[Result "1/2-1/2"]
[ECO "B54"]
[WhiteElo "2298"]
[BlackElo "2525"]
[Annotator "ChessBase"]
[PlyCount "116"]
[EventDate "2019.06.30"]
[EventType "swiss"]
[EventCountry "IND"]
[SourceTitle "playchess.com"]
[Source "ChessBase"]
[SourceQuality "1"]
[TimeControl "5400+30"]

1. e4 {[%emt 0:00:00]} c5 {[%emt 0:00:25]} 2. Nf3 {[%emt 0:00:02]} d6 {[%emt 0:00:08]} 3. d4 {[%emt 0:00:07]} cxd4 {[%emt 0:00:08]} 4. Nxd4 {[%emt 0:00:03]} Nf6 {[%emt 0:00:11]} 5. f3 {[%emt 0:00:03]} a6 {[%emt 0:04:26]} 6. c4 {[%emt 0:00:04]} e6 {[%emt 0:00:06]} 7. Nc3 {[%emt 0:00:06]} Be7 {[%emt 0:00:05]} 8. Be3 {[%emt 0:00:05]} b6 {[%emt 0:00:06]} 9. Be2 {[%emt 0:02:55]} O-O {[%emt 0:00:11]} 10. O-O {[%emt 0:00:08]} Bb7 {[%emt 0:00:03]} 11. Qd2 {[%emt 0:00:40]} Qc7 {[%emt 0:00:10]} 12. Rfc1 {[%emt 0:01:57]} Nbd7 {[%emt 0:00:13]} 13. b4 {[%emt 0:02:01]} Rac8 {[%emt 0:00:09]} 14. Nb3 {[%emt 0:00:40]} Qb8 {[%emt 0:01:06]} 15. Bf1 {[%emt 0:01:53]} Rfe8 {[%emt 0:03:50]} 16. Qf2 {[%emt 0:08:11]} d5 {[%emt 0:07:29]} 17. cxd5 {[%emt 0:02:25]} Bd6 {[%emt 0:10:35]} 18. g3 {[%emt 0:07:04]} exd5 {[%emt 0:03:48]} 19. Nxd5 {[%emt 0:01:21]} Nxd5 {[%emt 0:01:12]} 20. exd5 {[%emt 0:00:04]} Rxc1 {[%emt 0:02:22]} 21. Rxc1 {[%emt 0:00:37]} Bxb4 {[%emt 0:01:34]} 22. Bxb6 {[%emt 0:07:38]} Bxd5 {[%emt 0:03:43]} 23. Bd4 {[%emt 0:01:07]} Ne5 {[%emt 0:10:42]} 24. Bxe5 {[%emt 0:09:08]} Qxe5 {[%emt 0:02:25]} 25. Bxa6 {[%emt 0:00:07]} Be1 {[%emt 0:02:23]} 26. Qe2 {[%emt 0:04:42]} Qb8 {[%emt 0:10:27]} 27. Qxe8+ {[%emt 0:05:42]} Qxe8 {[%emt 0:04:47]} 28. Rc8 {[%emt 0:00:02]} Qxc8 {[%emt 0:00:10]} 29. Bxc8 {[%emt 0:00:02]} Bxf3 {[%emt 0:00:06]} 30. Bf5 {[%emt 0:01:05]} Bd5 {[%emt 0:01:11]} 31. Bc2 {[%emt 0:00:06]} g6 {[%emt 0:02:26]} 32. a4 {[%emt 0:00:10]} f5 {[%emt 0:00:13]} 33. Nd4 {[%emt 0:05:33]} Kg7 {[%emt 0:00:49]} 34. Bb3 {[%emt 0:00:41]} Bb7 {[%emt 0:00:42]} 35. Bc4 {[%emt 0:00:03]} h5 {[%emt 0:02:44]} 36. Kf1 {[%emt 0:01:23]} Bb4 {[%emt 0:01:27]} 37. Nb3 {[%emt 0:01:14]} Bd6 {[%emt 0:00:33]} 38. a5 {[%emt 0:11:53]} h4 {[%emt 0:00:20]} 39. a6 {[%emt 0:00:49]} Ba8 {[%emt 0:01:10]} 40. Kf2 {[%emt 0:04:00]} hxg3+ {[%emt 0:05:01]} 41. hxg3 {[%emt 0:00:02]} Bc7 {[%emt 0:00:08]} 42. Be2 {[%emt 0:07:33]} Bb6+ {[%emt 0:00:15]} 43. Kf1 {[%emt 0:00:03]} Kf6 {[%emt 0:02:49]} 44. Nd2 {[%emt 0:00:16]} Bd5 {[%emt 0:00:37]} 45. Bf3 {[%emt 0:00:47]} Be6 {[%emt 0:00:18]} 46. Bb7 {[%emt 0:00:43]} Bd7 {[%emt 0:00:20]} 47. Kg2 {[%emt 0:01:07]} Bb5 {[%emt 0:00:09]} 48. Kf3 {[%emt 0:02:57]} Ke5 {[%emt 0:04:40]} 49. Kg2 {[%emt 0:00:39]} g5 {[%emt 0:00:22]} 50. g4 {[%emt 0:02:50]} fxg4 {[%emt 0:01:02]} 51. Ne4 {[%emt 0:00:35]} Kf4 {[%emt 0:01:57]} 52. Nc3 {[%emt 0:01:23]} Bc4 {[%emt 0:00:32]} 53. Nd5+ {[%emt 0:00:12]} Bxd5+ {[%emt 0:00:06]} 54. Bxd5 {[%emt 0:00:05]} g3 {[%emt 0:00:07]} 55. Ba8 {[%emt 0:00:04]} Ba7 {[%emt 0:00:05]} 56. Bc6 {[%emt 0:00:05]} Bb6 {[%emt 0:00:04]} 57. Ba8 {[%emt 0:00:05]} Ba7 {[%emt 0:00:04]} 58. Bd5 {[%emt 0:00:04]} Bb6 {[%emt 0:00:04]} 1/2-1/2

[Event "Commonwealth Open 2019"]
[Site "Delhi"]
[Date "2019.07.04"]
[Round "6.8"]
[White "Wagh, Suyog"]
[Black "Kunte, Abhijit"]
[Result "1-0"]
[ECO "A40"]
[WhiteElo "2250"]
[BlackElo "2478"]
[Annotator "ChessBase"]
[PlyCount "69"]
[EventDate "2019.06.30"]
[EventType "swiss"]
[EventCountry "IND"]
[SourceTitle "playchess.com"]
[Source "ChessBase"]
[SourceQuality "1"]
[TimeControl "5400+30"]

1. d4 {[%emt 0:04:28]} Nf6 {[%emt 0:00:05]} 2. c4 {[%emt 0:00:05]} e6 {[%emt 0:00:22]} 3. g3 {[%emt 0:00:04]} Bb4+ {[%emt 0:02:36]} 4. Bd2 {[%emt 0:00:10]} a5 {[%emt 0:00:53]} 5. Bg2 {[%emt 0:02:40]} d5 {[%emt 0:00:48]} 6. Qc2 {[%emt 0:01:21]} O-O {[%emt 0:05:21]} 7. Nf3 {[%emt 0:06:46]} c5 {[%emt 0:00:07]} 8. cxd5 {[%emt 0:07:30]} cxd4 {[%emt 0:00:09]} 9. Nxd4 {[%emt 0:04:44]} Qb6 {[%emt 0:00:10]} 10. e3 {[%emt 0:03:41]} exd5 {[%emt 0:01:12]} 11. O-O {[%emt 0:08:23]} Nc6 {[%emt 0:00:26]} 12. Nxc6 {[%emt 0:05:10]} bxc6 {[%emt 0:00:08]} 13. Rc1 {[%emt 0:12:31]} Bb7 {[%emt 0:13:45]} 14. Nc3 {[%emt 0:00:23]} c5 {[%emt 0:04:15]} 15. a3 {[%emt 0:35:36]} Bxc3 {[%emt 0:00:35]} 16. Bxc3 {[%emt 0:02:30]} d4 {[%emt 0:06:12]} 17. Bxb7 {[%emt 0:00:07]} dxc3 {[%emt 0:00:05]} 18. Bxa8 {[%emt 0:00:07]} cxb2 {[%emt 0:00:04]} 19. Bg2 {[%emt 0:00:07]} Rc8 {[%emt 0:02:03]} 20. Rab1 {[%emt 0:01:06]} bxc1=Q+ {[%emt 0:00:07]} 21. Qxc1 {[%emt 0:00:02]} Qd6 {[%emt 0:00:29]} 22. Qc3 {[%emt 0:01:07]} c4 {[%emt 0:03:24]} 23. Qxa5 {[%emt 0:02:06]} c3 {[%emt 0:00:56]} 24. Rc1 {[%emt 0:00:05]} c2 {[%emt 0:02:18]} 25. Bb7 {[%emt 0:00:38]} Rb8 {[%emt 0:00:19]} 26. Qc7 {[%emt 0:00:18]} Rf8 {[%emt 0:05:24]} 27. Qxc2 {[%emt 0:00:42]} h5 {[%emt 0:00:06]} 28. h4 {[%emt 0:00:26]} Ng4 {[%emt 0:00:20]} 29. Bf3 {[%emt 0:00:22]} Nf6 {[%emt 0:02:29]} 30. a4 {[%emt 0:00:10]} g6 {[%emt 0:02:06]} 31. a5 {[%emt 0:00:31]} Nd7 {[%emt 0:00:05]} 32. Bg2 {[%emt 0:01:16]} Ne5 {[%emt 0:00:09]} 33. Ra1 {[%emt 0:00:41]} Rc8 {[%emt 0:00:33]} 34. Qb2 {[%emt 0:00:35]} Nd3 {[%emt 0:02:44]} 35. Qd4 {[%emt 0:00:27]} 1-0

[Event "Commonwealth Open 2019"]
[Site "Delhi"]
[Date "2019.07.04"]
[Round "6.9"]
[White "Thejkumar, M. S."]
[Black "Vaishali, R."]
[Result "0-1"]
[ECO "A48"]
[WhiteElo "2458"]
[BlackElo "2338"]
[Annotator "ChessBase"]
[PlyCount "96"]
[EventDate "2019.06.30"]
[EventType "swiss"]
[EventCountry "IND"]
[SourceTitle "playchess.com"]
[Source "ChessBase"]
[SourceQuality "1"]
[TimeControl "5400+30"]

1. d4 {[%emt 0:00:45]} Nf6 {[%emt 0:00:00]} 2. Nf3 {[%emt 0:00:34]} g6 {[%emt 0:00:00]} 3. Bg5 {[%emt 0:02:19]} Bg7 {[%emt 0:00:00]} 4. Nbd2 {[%emt 0:00:16]} O-O {[%emt 0:00:10]} 5. c3 {[%emt 0:00:12]} d5 {[%emt 0:01:08]} 6. e3 {[%emt 0:00:20]} b6 {[%emt 0:00:26]} 7. Bd3 {[%emt 0:02:03]} Ba6 {[%emt 0:04:05]} 8. Bxa6 {[%emt 0:04:58]} Nxa6 {[%emt 0:00:03]} 9. Ne5 {[%emt 0:00:20]} c5 {[%emt 0:02:02]} 10. O-O {[%emt 0:15:06]} Nc7 {[%emt 0:05:57]} 11. a4 {[%emt 0:03:09]} Nce8 {[%emt 0:15:02]} 12. Qf3 {[%emt 0:05:24]} Rc8 {[%emt 0:04:35]} 13. Rfd1 {[%emt 0:08:09]} cxd4 {[%emt 0:06:01]} 14. exd4 {[%emt 0:01:09]} Nd6 {[%emt 0:01:02]} 15. Bxf6 {[%emt 0:03:39]} exf6 {[%emt 0:00:17]} 16. Nd3 {[%emt 0:00:07]} Nc4 {[%emt 0:05:08]} 17. Nxc4 {[%emt 0:04:07]} dxc4 {[%emt 0:00:06]} 18. Nb4 {[%emt 0:02:04]} Re8 {[%emt 0:15:39]} 19. Nc6 {[%emt 0:11:48]} Qd7 {[%emt 0:04:59]} 20. d5 {[%emt 0:01:23]} f5 {[%emt 0:02:50]} 21. Re1 {[%emt 0:02:54]} Bf8 {[%emt 0:05:24]} 22. g3 {[%emt 0:02:51]} Bc5 {[%emt 0:03:56]} 23. Kg2 {[%emt 0:05:15]} a5 {[%emt 0:03:59]} 24. Rad1 {[%emt 0:05:40]} Qd6 {[%emt 0:05:05]} 25. Na7 {[%emt 0:05:00]} Rcd8 {[%emt 0:01:13]} 26. Rxe8+ {[%emt 0:01:29]} Rxe8 {[%emt 0:00:02]} 27. Nb5 {[%emt 0:00:09]} Qd7 {[%emt 0:00:36]} 28. d6 {[%emt 0:04:27]} Re4 {[%emt 0:03:14]} 29. Rd2 {[%emt 0:00:54]} h5 {[%emt 0:03:08]} 30. Qd1 {[%emt 0:01:39]} h4 {[%emt 0:01:27]} 31. f3 {[%emt 0:01:16]} Re3 {[%emt 0:03:19]} 32. gxh4 {[%emt 0:00:19]} f4 {[%emt 0:01:19]} 33. Qf1 {[%emt 0:01:02]} Re6 {[%emt 0:02:31]} 34. Qd1 {[%emt 0:04:49]} Be3 {[%emt 0:01:36]} 35. Re2 {[%emt 0:00:50]} Re5 {[%emt 0:00:33]} 36. Qf1 {[%emt 0:00:58]} Rh5 {[%emt 0:00:24]} 37. Kh1 {[%emt 0:00:26]} Rxh4 {[%emt 0:00:17]} 38. Rg2 {[%emt 0:00:36]} Qc6 {[%emt 0:00:38]} 39. Qd1 {[%emt 0:00:22]} Qd7 {[%emt 0:00:40]} 40. Qd5 {[%emt 0:00:14]} Kg7 {[%emt 0:00:33]} 41. Qxc4 {[%emt 0:00:39]} Qf5 {[%emt 0:00:24]} 42. Qe4 {[%emt 0:00:31]} Qxe4 {[%emt 0:00:36]} 43. fxe4 {[%emt 0:00:06]} f3 {[%emt 0:00:03]} 44. Rg3 {[%emt 0:00:44]} f2 {[%emt 0:00:55]} 45. Rf3 {[%emt 0:00:11]} Rg4 {[%emt 0:00:13]} 46. h4 {[%emt 0:00:52]} Rg3 {[%emt 0:00:27]} 47. Rxf2 {[%emt 0:00:24]} Bxf2 {[%emt 0:00:07]} 48. d7 {[%emt 0:00:07]} Rg2 0-1

[Event "Commonwealth Open 2019"]
[Site "Delhi"]
[Date "2019.07.04"]
[Round "6.10"]
[White "Bhambure, Shantanu"]
[Black "Karthikeyan, P.."]
[Result "1/2-1/2"]
[ECO "E81"]
[WhiteElo "2248"]
[BlackElo "2445"]
[Annotator "NA"]
[PlyCount "157"]
[EventDate "2019.06.30"]
[EventType "swiss"]
[EventCountry "IND"]
[SourceTitle "playchess.com"]
[Source "ChessBase"]
[SourceQuality "1"]
[TimeControl "5400+30"]

1. d4 {[%emt 0:00:00]} Nf6 {[%emt 0:00:48]} 2. c4 {[%emt 0:00:00]} g6 {[%emt 0:00:34]} 3. Nc3 {[%emt 0:00:00]} Bg7 {[%emt 0:00:37]} 4. e4 {[%emt 0:00:00]} d6 {[%emt 0:00:09]} 5. f3 {[%emt 0:00:05]} O-O {[%emt 0:01:36]} 6. Nge2 {[%emt 0:00:03]} c5 {[%emt 0:00:33]} 7. d5 {[%emt 0:00:11]} e6 {[%emt 0:00:46]} 8. Ng3 {[%emt 0:00:19]} exd5 {[%emt 0:00:18]} 9. cxd5 {[%emt 0:00:04]} a6 {[%emt 0:00:11]} 10. a4 {[%emt 0:00:05]} Nbd7 {[%emt 0:00:23]} 11. Be2 {[%emt 0:00:57]} Ne8 {[%emt 0:00:26]} 12. O-O {[%emt 0:01:44]} Rb8 {[%emt 0:00:05]} 13. f4 {[%emt 0:02:26]} Nc7 {[%emt 0:01:22]} 14. e5 {[%emt 0:02:17]} f5 {[%emt 0:00:41]} 15. exf6 {[%emt 0:08:46]} Nxf6 {[%emt 0:00:03]} 16. a5 {[%emt 0:12:33]} b5 {[%emt 0:04:09]} 17. axb6 $11 {[%emt 0:00:13]} Rxb6 {[%emt 0:00:03]} 18. f5 {[%emt 0:08:24]} Bxf5 {[%emt 0:01:41]} 19. Nxf5 {[%emt 0:00:32]} gxf5 {[%emt 0:00:15]} 20. Rxf5 {[%emt 0:02:40]} Qd7 {[%emt 0:00:38]} 21. Bd3 {[%emt 0:09:02]} Rb4 {[%emt 0:04:43]} 22. Qf3 {[%emt 0:08:06]} Ng4 {[%emt 0:06:48]} 23. Rxf8+ {[%emt 0:02:32]} Bxf8 {[%emt 0:03:27]} 24. h3 {[%emt 0:12:08]} Ne5 {[%emt 0:02:50]} 25. Qg3+ {[%emt 0:01:47]} Qg7 26. Qxg7+ {[%emt 0:00:46]} Bxg7 {[%emt 0:01:53]} 27. Be2 {[%emt 0:05:26]} Nc4 {[%emt 0:03:46]} 28. Bxc4 {[%emt 0:02:35]} Rxc4 {[%emt 0:06:45]} 29. Bd2 {[%emt 0:00:35]} Rd4 {[%emt 0:01:45]} 30. Be1 {[%emt 0:01:38]} Kf7 {[%emt 0:05:31]} 31. Kf1 {[%emt 0:03:00]} Be5 {[%emt 0:09:15]} 32. g3 {[%emt 0:03:54]} h5 {[%emt 0:02:31]} 33. Ke2 {[%emt 0:00:40]} Rb4 {[%emt 0:00:32]} 34. Ra2 {[%emt 0:01:28]} Rb3 {[%emt 0:02:07]} 35. Kd1 {[%emt 0:03:03]} Rb6 {[%emt 0:03:27]} 36. Kc2 {[%emt 0:01:06]} Bxc3 {[%emt 0:04:10]} 37. bxc3 {[%emt 0:00:18]} Nxd5 {[%emt 0:00:07]} 38. Bd2 {[%emt 0:00:57]} Ke6 {[%emt 0:01:18]} 39. Ra4 {[%emt 0:00:15]} Nf6 {[%emt 0:01:26]} 40. Rh4 {[%emt 0:02:35]} Rb8 {[%emt 0:03:12]} 41. Bg5 {[%emt 0:01:49]} Rg8 {[%emt 0:00:33]} 42. Bxf6 {[%emt 0:00:13]} Kxf6 {[%emt 0:00:03]} 43. Rxh5 {[%emt 0:00:36]} Rxg3 {[%emt 0:00:06]} 44. Rh8 {[%emt 0:00:36]} c4 {[%emt 0:06:40]} 45. Ra8 {[%emt 0:01:00]} Rg2+ {[%emt 0:00:43]} 46. Kb1 {[%emt 0:01:20]} Ke5 {[%emt 0:00:42]} 47. Rxa6 {[%emt 0:00:23]} d5 {[%emt 0:00:09]} 48. Ra8 {[%emt 0:01:49]} Ke4 {[%emt 0:00:38]} 49. Rd8 {[%emt 0:00:25]} Rh2 {[%emt 0:00:45]} 50. h4 {[%emt 0:00:41]} Rxh4 {[%emt 0:01:29]} 51. Kc2 {[%emt 0:00:24]} Rh2+ {[%emt 0:00:12]} 52. Kb1 {[%emt 0:00:21]} Kd3 {[%emt 0:03:31]} 53. Rxd5+ {[%emt 0:00:13]} Kxc3 {[%emt 0:00:02]} 54. Rc5 {[%emt 0:00:13]} Rh1+ {[%emt 0:06:36]} 55. Ka2 {[%emt 0:00:04]} Rc1 {[%emt 0:00:05]} 56. Rh5 {[%emt 0:01:16]} Rd1 {[%emt 0:01:30]} 57. Rc5 {[%emt 0:00:44]} Rd4 {[%emt 0:00:48]} 58. Kb1 {[%emt 0:01:43]} Re4 {[%emt 0:04:18]} 59. Rc8 {[%emt 0:00:33]} Re1+ {[%emt 0:00:02]} 60. Ka2 {[%emt 0:00:01]} Rc1 {[%emt 0:00:01]} 61. Rh8 {[%emt 0:00:10]} Re1 {[%emt 0:01:58]} 62. Rc8 {[%emt 0:00:17]} Kd3 {[%emt 0:01:46]} 63. Kb2 {[%emt 0:00:07]} Re2+ {[%emt 0:00:24]} 64. Kc1 {[%emt 0:00:51]} Kc3 {[%emt 0:02:18]} 65. Kb1 {[%emt 0:00:05]} Rb2+ {[%emt 0:00:03]} 66. Kc1 {[%emt 0:00:57]} Ra2 {[%emt 0:00:20]} 67. Kb1 {[%emt 0:00:32]} Ra4 {[%emt 0:01:17]} 68. Rh8 {[%emt 0:00:55]} Kb3 {[%emt 0:00:02]} 69. Rb8+ {[%emt 0:00:28]} Kc3 {[%emt 0:00:02]} 70. Rh8 {[%emt 0:00:04]} Rb4+ {[%emt 0:00:23]} 71. Kc1 {[%emt 0:00:23]} Kb3 {[%emt 0:00:01]} 72. Rh3+ {[%emt 0:02:49]} c3 {[%emt 0:00:04]} 73. Rh8 {[%emt 0:00:23]} Rb7 {[%emt 0:00:09]} 74. Rc8 {[%emt 0:00:38]} Rd7 {[%emt 0:00:35]} 75. Rb8+ {[%emt 0:00:20]} Kc4 {[%emt 0:00:02]} 76. Kc2 {[%emt 0:00:33]} Rd2+ {[%emt 0:00:10]} 77. Kc1 {[%emt 0:00:20]} Rd4 {[%emt 0:00:07]} 78. Kc2 {[%emt 0:00:11]} Rd2+ {[%emt 0:00:25]} 79. Kc1 {[%emt 0:00:03]} 1/2-1/2

[Event "Commonwealth Open 2019"]
[Site "Delhi"]
[Date "2019.07.04"]
[Round "6.11"]
[White "Saravana, Krishnan P."]
[Black "Shyaamnikhil, P."]
[Result "1-0"]
[ECO "B50"]
[WhiteElo "2290"]
[BlackElo "2434"]
[Annotator "NA"]
[PlyCount "83"]
[EventDate "2019.06.30"]
[EventType "swiss"]
[EventCountry "IND"]
[SourceTitle "playchess.com"]
[Source "ChessBase"]
[SourceQuality "1"]
[TimeControl "5400+30"]

1. e4 {[%emt 0:00:00]} c5 {[%emt 0:00:00]} 2. Nf3 {[%emt 0:00:05]} d6 {[%emt 0:00:01]} 3. c3 {[%emt 0:05:31]} Nf6 {[%emt 0:00:46]} 4. h3 {[%emt 0:00:06]} Nbd7 {[%emt 0:00:38]} 5. Bd3 {[%emt 0:00:22]} b6 {[%emt 0:01:16]} 6. O-O {[%emt 0:00:56] B50: Sicilian: 2...d6, Miscellaneous} Bb7 {[%emt 0:01:43]} 7. Re1 {[%emt 0:01:18]} Qc7 {[%emt 0:00:55]} 8. Bc2 {[%emt 0:05:08]} Rc8 {[%emt 0:00:24]} 9. d3 {[%emt 0:00:42]} e6 {[%emt 0:06:28]} 10. a4 {[%emt 0:00:10]} Be7 {[%emt 0:00:16]} 11. Na3 {[%emt 0:00:36]} O-O {[%emt 0:05:30]} 12. Bf4 {[%emt 0:00:53]} Qb8 $146 {[%emt 0:05:48]} ({Predecessor:} 12... a6 13. Rc1 Rfe8 {½-½ (47) Nijboer,F (2641)-Savchenko,S (2532) Germany 2007}) 13. Nc4 {[%emt 0:07:31]} Ne8 {[%emt 0:02:56]} 14. Nfd2 {[%emt 0:10:35]} Qa8 {[%emt 0:02:44]} 15. a5 {[%emt 0:02:57]} b5 {[%emt 0:01:04]} 16. a6 {[%emt 0:01:06]} Bc6 {[%emt 0:00:12]} 17. Na5 {[%emt 0:00:09]} Nb8 {[%emt 0:10:53]} 18. c4 {[%emt 0:07:24]} Bd7 {[%emt 0:09:37]} 19. e5 {[%emt 0:07:14]} Nxa6 $11 {[%emt 0:00:32]} 20. cxb5 {[%emt 0:07:25]} Bxb5 {[%emt 0:02:15]} 21. Nac4 {[%emt 0:00:06]} d5 {[%emt 0:05:05]} 22. Ra5 {[%emt 0:01:53]} Rb8 {[%emt 0:05:53]} 23. Na3 {[%emt 0:08:17]} Nec7 {[%emt 0:02:13]} 24. Qg4 {[%emt 0:02:22]} Kh8 {[%emt 0:04:06]} 25. d4 {[%emt 0:03:24]} Nb4 {[%emt 0:04:21]} 26. Re3 {[%emt 0:07:21]} Nxc2 {[%emt 0:03:28]} 27. Nxc2 {[%emt 0:00:45]} Rg8 {[%emt 0:03:15]} 28. Nf3 {[%emt 0:01:27]} cxd4 {[%emt 0:07:21]} 29. Ncxd4 {[%emt 0:00:22]} Bd7 {[%emt 0:02:07]} 30. Ng5 {[%emt 0:03:54]} Bxg5 {[%emt 0:00:07]} 31. Bxg5 {[%emt 0:00:22]} Rxb2 {[%emt 0:00:34]} 32. Rg3 {[%emt 0:00:11]} Rb4 {[%emt 0:01:54]} 33. Be7 {[%emt 0:01:31]} Rc4 {[%emt 0:00:20]} 34. Qf4 {[%emt 0:02:20]} Qb8 {[%emt 0:06:33]} 35. Rc5 {[%emt 0:02:11]} Ne8 {[%emt 0:02:40]} 36. Rxc4 {[%emt 0:02:27]} dxc4 {[%emt 0:00:05]} 37. Nf3 {[%emt 0:00:16]} f6 {[%emt 0:01:21]} 38. Qxc4 {[%emt 0:01:04]} fxe5 {[%emt 0:02:19]} 39. Qe4 {[%emt 0:00:54]} Nf6 {[%emt 0:00:24]} 40. Ng5 {[%emt 0:00:35]} Be8 {[%emt 0:00:41]} 41. Bxf6 {[%emt 0:00:13]} Bg6 {[%emt 0:00:05]} 42. Bxe5 {[%emt 0:00:22]} 1-0

[Event "Commonwealth Open 2019"]
[Site "Delhi"]
[Date "2019.07.04"]
[Round "6.12"]
[White "Priyanka, K."]
[Black "Swayams, Mishra"]
[Result "0-1"]
[ECO "C12"]
[WhiteElo "2053"]
[BlackElo "2493"]
[Annotator "RC"]
[PlyCount "110"]
[EventDate "2019.06.30"]
[EventType "swiss"]
[EventCountry "IND"]
[SourceTitle "playchess.com"]
[Source "ChessBase"]
[SourceQuality "1"]
[TimeControl "5400+30"]

1. e4 {[%emt 0:00:10]} e6 {[%emt 0:00:00]} 2. d4 {[%emt 0:00:07]} d5 {[%emt 0:00:00]} 3. Nc3 {[%emt 0:00:08]} Nf6 {[%emt 0:00:00]} 4. Bg5 {[%emt 0:00:42]} Bb4 {[%emt 0:00:00]} 5. e5 {[%emt 0:04:37]} h6 {[%emt 0:00:00]} 6. Bc1 {[%emt 0:00:09]} Ne4 {[%emt 0:00:00]} 7. Qg4 {[%emt 0:00:35]} g6 {[%emt 0:06:01]} 8. a3 {[%emt 0:00:56]} Bxc3+ {[%emt 0:01:10]} 9. bxc3 {[%emt 0:00:07]} c5 {[%emt 0:00:18]} 10. Bd3 {[%emt 0:04:53]} cxd4 {[%emt 0:02:54]} 11. Ne2 {[%emt 0:07:41]} h5 {[%emt 0:02:19]} 12. Qf3 {[%emt 0:14:22]} dxc3 {[%emt 0:06:34]} 13. Bxe4 {[%emt 0:05:16]} dxe4 {[%emt 0:00:44]} 14. Qxe4 {[%emt 0:00:13]} Bd7 {[%emt 0:01:23]} 15. O-O {[%emt 0:10:07]} Bc6 {[%emt 0:00:11]} 16. Qc4 {[%emt 0:07:52]} Nd7 {[%emt 0:03:12]} 17. Qxc3 {[%emt 0:02:41]} Rc8 {[%emt 0:04:25]} 18. Qd3 {[%emt 0:04:53]} Nb6 {[%emt 0:10:06]} 19. Qxd8+ {[%emt 0:03:35]} Rxd8 {[%emt 0:01:10]} 20. Bg5 {[%emt 0:00:25]} Rd5 {[%emt 0:02:21]} 21. Rfd1 {[%emt 0:01:13]} O-O {[%emt 0:00:27]} 22. Rxd5 {[%emt 0:00:36]} Bxd5 {[%emt 0:00:13]} 23. Be3 {[%emt 0:05:39]} Nc4 {[%emt 0:01:08]} 24. Bd4 {[%emt 0:01:09]} Rc8 {[%emt 0:00:49]} 25. c3 {[%emt 0:00:53]} b6 {[%emt 0:03:36]} 26. f3 {[%emt 0:02:19]} Na5 {[%emt 0:03:20]} 27. Rd1 {[%emt 0:05:20]} Rc4 {[%emt 0:08:37]} 28. Be3 {[%emt 0:04:46]} Ra4 {[%emt 0:00:07]} 29. Bc1 {[%emt 0:00:23]} Nc4 {[%emt 0:00:34]} 30. Rd4 {[%emt 0:00:10]} Ra5 {[%emt 0:00:24]} 31. Nf4 {[%emt 0:03:57]} Nxe5 {[%emt 0:00:57]} 32. Nxd5 {[%emt 0:05:02]} Rxd5 {[%emt 0:01:25]} 33. Kf1 {[%emt 0:01:11]} Rxd4 {[%emt 0:01:50]} 34. cxd4 {[%emt 0:00:05]} Nc6 {[%emt 0:00:02]} 35. Bb2 {[%emt 0:00:10]} Kf8 {[%emt 0:00:23]} 36. Ke2 {[%emt 0:00:35]} Ke7 {[%emt 0:00:02]} 37. Kd3 {[%emt 0:00:15]} Kd6 {[%emt 0:00:06]} 38. Kc4 {[%emt 0:00:28]} a6 {[%emt 0:01:13]} 39. Bc3 {[%emt 0:00:27]} b5+ {[%emt 0:00:02]} 40. Kd3 {[%emt 0:00:07]} Kd5 {[%emt 0:00:04]} 41. Bb2 {[%emt 0:01:13]} Na5 {[%emt 0:00:38]} 42. Bc3 {[%emt 0:00:15]} Nc6 {[%emt 0:03:16]} 43. Bb2 {[%emt 0:00:08]} b4 {[%emt 0:00:19]} 44. axb4 {[%emt 0:01:30]} Nxb4+ {[%emt 0:00:01]} 45. Kc3 {[%emt 0:00:09]} Nc6 {[%emt 0:00:05]} 46. Kd3 {[%emt 0:00:07]} a5 {[%emt 0:00:37]} 47. Ba1 {[%emt 0:00:26]} a4 {[%emt 0:00:15]} 48. Bb2 {[%emt 0:00:06]} f5 {[%emt 0:00:16]} 49. h4 {[%emt 0:01:24]} Na5 {[%emt 0:01:43]} 50. Bc3 {[%emt 0:03:26]} Nc4 {[%emt 0:00:13]} 51. Ba1 {[%emt 0:00:09]} f4 {[%emt 0:01:11]} 52. Bc3 {[%emt 0:00:27]} a3 {[%emt 0:00:36]} 53. Ba1 {[%emt 0:00:16]} Ne3 {[%emt 0:00:40]} 54. g3 {[%emt 0:00:42]} Nc2 {[%emt 0:00:14]} 55. Bc3 {[%emt 0:01:21]} fxg3 {[%emt 0:00:06]} 0-1

[Event "Commonwealth Open 2019"]
[Site "Delhi"]
[Date "2019.07.04"]
[Round "6.13"]
[White "Krishna, C R G"]
[Black "Kiran, Manisha Mohanty"]
[Result "1-0"]
[ECO "D70"]
[WhiteElo "2481"]
[BlackElo "2054"]
[Annotator "ChessBase"]
[PlyCount "59"]
[EventDate "2019.06.30"]
[EventType "swiss"]
[EventCountry "IND"]
[SourceTitle "playchess.com"]
[Source "ChessBase"]
[SourceQuality "1"]
[TimeControl "5400+30"]

1. d4 {[%emt 0:01:52]} Nf6 {[%emt 0:00:00]} 2. c4 {[%emt 0:00:10]} g6 {[%emt 0:00:07]} 3. Nf3 {[%emt 0:00:06]} Bg7 {[%emt 0:00:07]} 4. e3 {[%emt 0:00:06]} O-O {[%emt 0:00:05]} 5. Be2 {[%emt 0:00:03]} d5 {[%emt 0:00:42]} 6. cxd5 {[%emt 0:00:08]} Nxd5 {[%emt 0:00:05]} 7. e4 {[%emt 0:00:07]} Nb6 {[%emt 0:00:09]} 8. O-O {[%emt 0:00:07]} a5 {[%emt 0:00:46]} 9. h3 {[%emt 0:07:05]} a4 {[%emt 0:03:48]} 10. Nc3 {[%emt 0:06:56]} f5 {[%emt 0:01:18]} 11. exf5 {[%emt 0:08:52]} Bxf5 {[%emt 0:00:08]} 12. Be3 {[%emt 0:00:08]} Kh8 {[%emt 0:06:27]} 13. Qd2 {[%emt 0:02:08]} a3 {[%emt 0:10:59]} 14. b3 {[%emt 0:01:27]} c6 {[%emt 0:06:42]} 15. Rfe1 {[%emt 0:15:21]} Na6 {[%emt 0:03:02]} 16. Bxa6 {[%emt 0:10:40]} Rxa6 {[%emt 0:00:07]} 17. Bg5 {[%emt 0:00:14]} Nc8 {[%emt 0:22:02]} 18. Qe3 {[%emt 0:03:23]} c5 {[%emt 0:06:57]} 19. d5 {[%emt 0:05:04]} Qa5 {[%emt 0:08:31]} 20. Rac1 {[%emt 0:02:12]} e6 {[%emt 0:05:13]} 21. Bh6 {[%emt 0:01:31]} Ne7 {[%emt 0:14:55]} 22. Bxg7+ {[%emt 0:00:49]} Kxg7 {[%emt 0:00:03]} 23. g4 {[%emt 0:00:30]} Bxg4 {[%emt 0:00:59]} 24. hxg4 {[%emt 0:00:02]} Qb4 {[%emt 0:00:09]} 25. Qg5 {[%emt 0:04:24]} Rxf3 {[%emt 0:03:17]} 26. Qxe7+ {[%emt 0:00:38]} Rf7 {[%emt 0:00:08]} 27. Qg5 {[%emt 0:00:30]} Rf4 {[%emt 0:01:56]} 28. Qe5+ {[%emt 0:00:16]} Kh6 {[%emt 0:00:49]} 29. g5+ {[%emt 0:00:31]} Kh5 {[%emt 0:00:03]} 30. Re4 {[%emt 0:00:45]} 1-0